[Event "Titled Tuesday Blitz March 22 Late 2022"]
[White "Kozin, Yuri"]
[Black "Nazaretyan, Tigran"]
[WhiteFideId "4129920"]
[BlackFideId "24162345"]
[WhiteElo "2543"]
[BlackElo "2219"]
[Result "1/2-1/2"]
[Round "11"]
[TimeControl "180+1"]
[Date "2022.03.22"]
[WhiteClock "0:00:19"]
[BlackClock "0:00:22"]

1. e4 {[%clk 0:03:00]}  c5 {[%clk 0:02:56]} 2. Nf3 {[%clk 0:03:00]}  Nc6 {[%clk 0:02:55]} 3. d4 {[%clk 0:03:00]}  cxd4 {[%clk 0:02:55]} 4. Nxd4 {[%clk 0:03:01]}  Nf6 {[%clk 0:02:55]} 5. Nc3 {[%clk 0:03:01]}  d6 {[%clk 0:02:56]} 6. Bc4 {[%clk 0:03:01]}  e5 {[%clk 0:02:56]} 7. Nf5 {[%clk 0:02:47]}  Bxf5 {[%clk 0:02:53]} 8. exf5 {[%clk 0:02:47]}  Qd7 {[%clk 0:02:54]} 9. Nd5 {[%clk 0:02:43]}  Nxd5 {[%clk 0:02:52]} 10. Qxd5 {[%clk 0:02:30]}  Qxf5 {[%clk 0:02:47]} 11. O-O {[%clk 0:02:30]}  Be7 {[%clk 0:02:34]} 12. Qb5 {[%clk 0:02:17]}  Qd7 {[%clk 0:02:26]} 13. Be3 {[%clk 0:02:14]}  a6 {[%clk 0:02:18]} 14. Qd5 {[%clk 0:02:08]}  O-O {[%clk 0:02:16]} 15. c3 {[%clk 0:02:07]}  Rac8 {[%clk 0:02:10]} 16. Rad1 {[%clk 0:02:00]}  b5 {[%clk 0:02:09]} 17. Bb3 {[%clk 0:01:56]}  Na5 {[%clk 0:02:09]} 18. Qxe5 {[%clk 0:01:51]}  Nxb3 {[%clk 0:02:05]} 19. axb3 {[%clk 0:01:50]}  Qe6 {[%clk 0:01:59]} 20. Qd5 {[%clk 0:01:47]}  Rfe8 {[%clk 0:01:51]} 21. h3 {[%clk 0:01:40]}  h6 {[%clk 0:01:50]} 22. Rfe1 {[%clk 0:01:40]}  Qxd5 {[%clk 0:01:38]} 23. Rxd5 {[%clk 0:01:39]}  Bf8 {[%clk 0:01:37]} 24. Ra1 {[%clk 0:01:38]}  Rc6 {[%clk 0:01:36]} 25. b4 {[%clk 0:01:33]}  Re5 {[%clk 0:01:35]} 26. Rad1 {[%clk 0:01:31]}  g5 {[%clk 0:01:28]} 27. Kf1 {[%clk 0:01:14]}  f6 {[%clk 0:01:22]} 28. g4 {[%clk 0:01:14]}  Kf7 {[%clk 0:01:22]} 29. Rxe5 {[%clk 0:01:12]}  dxe5 {[%clk 0:01:20]} 30. Rd7+ {[%clk 0:01:11]}  Kg6 {[%clk 0:01:19]} 31. Rd8 {[%clk 0:01:05]}  Be7 {[%clk 0:01:18]} 32. Rg8+ {[%clk 0:01:04]}  Kf7 {[%clk 0:01:17]} 33. Rh8 {[%clk 0:01:04]}  Kg7 {[%clk 0:01:17]} 34. Re8 {[%clk 0:01:04]}  Kf7 {[%clk 0:01:16]} 35. Rh8 {[%clk 0:01:04]}  Bf8 {[%clk 0:01:15]} 36. Bc5 {[%clk 0:00:57]}  Bxc5 {[%clk 0:01:07]} 37. bxc5 {[%clk 0:00:56]}  Rxc5 {[%clk 0:01:04]} 38. Rxh6 {[%clk 0:00:52]}  Kg7 {[%clk 0:01:04]} 39. Rh5 {[%clk 0:00:53]}  Rc4 {[%clk 0:01:04]} 40. f3 {[%clk 0:00:47]}  b4 {[%clk 0:01:01]} 41. h4 {[%clk 0:00:45]}  Kg6 {[%clk 0:00:58]} 42. hxg5 {[%clk 0:00:43]}  fxg5 {[%clk 0:00:58]} 43. Rh8 {[%clk 0:00:38]}  bxc3 {[%clk 0:00:56]} 44. bxc3 {[%clk 0:00:39]}  Rxc3 {[%clk 0:00:57]} 45. Ke2 {[%clk 0:00:40]}  a5 {[%clk 0:00:47]} 46. Ra8 {[%clk 0:00:38]}  Ra3 {[%clk 0:00:46]} 47. Ra6+ {[%clk 0:00:39]}  Kf7 {[%clk 0:00:46]} 48. Kf2 {[%clk 0:00:33]}  a4 {[%clk 0:00:45]} 49. Ke2 {[%clk 0:00:29]}  Ra1 {[%clk 0:00:44]} 50. Ke3 {[%clk 0:00:28]}  Ke7 {[%clk 0:00:22]} 51. Ke4 {[%clk 0:00:27]}  Re1+ {[%clk 0:00:21]} 52. Kf5 {[%clk 0:00:27]}  Re3 {[%clk 0:00:21]} 53. Rxa4 {[%clk 0:00:24]}  Rxf3+ {[%clk 0:00:21]} 54. Kxe5 {[%clk 0:00:20]}  Kf7 {[%clk 0:00:21]} 55. Ra6 {[%clk 0:00:19]}  Kg7 {[%clk 0:00:21]} 56. Ra7+ {[%clk 0:00:18]}  Kg6 {[%clk 0:00:21]} 57. Ra6+ {[%clk 0:00:18]}  Kg7 {[%clk 0:00:21]} 58. Ra7+ {[%clk 0:00:19]}  Kg6 {[%clk 0:00:22]} 59. Ra6+ {[%clk 0:00:19]}  Kg7 {[%clk 0:00:22]} 1/2-1/2


[Site "https://www.chess.com"]

[Event "Titled Tuesday Blitz March 22 Late 2022"]
[White "Ladan, Nicholas"]
[Black "Rolfe, Warrick"]
[WhiteFideId "30918855"]
[BlackFideId "2603802"]
[WhiteElo "2167"]
[BlackElo "2564"]
[Result "1-0"]
[Round "11"]
[TimeControl "180+1"]
[Date "2022.03.22"]
[WhiteClock "0:00:32"]
[BlackClock "0:00:41"]

1. d4 {[%clk 0:03:00]}  Nf6 {[%clk 0:02:59]} 2. Bf4 {[%clk 0:03:00]}  g6 {[%clk 0:02:57]} 3. Nf3 {[%clk 0:03:00]}  Bg7 {[%clk 0:02:57]} 4. Nc3 {[%clk 0:03:01]}  d5 {[%clk 0:02:57]} 5. Ne5 {[%clk 0:02:58]}  O-O {[%clk 0:02:53]} 6. Qd2 {[%clk 0:02:58]}  Ne4 {[%clk 0:02:47]} 7. Nxe4 {[%clk 0:02:57]}  dxe4 {[%clk 0:02:47]} 8. e3 {[%clk 0:02:53]}  Nd7 {[%clk 0:02:33]} 9. O-O-O {[%clk 0:02:45]}  Nxe5 {[%clk 0:02:19]} 10. Bxe5 {[%clk 0:02:45]}  Bg4 {[%clk 0:02:04]} 11. Be2 {[%clk 0:02:39]}  Bxe2 {[%clk 0:02:02]} 12. Qxe2 {[%clk 0:02:40]}  c6 {[%clk 0:01:58]} 13. Qc4 {[%clk 0:02:33]}  Qd5 {[%clk 0:01:54]} 14. Qxd5 {[%clk 0:02:21]}  cxd5 {[%clk 0:01:55]} 15. Bxg7 {[%clk 0:02:21]}  Kxg7 {[%clk 0:01:56]} 16. Kd2 {[%clk 0:02:09]}  Rfc8 {[%clk 0:01:55]} 17. a4 {[%clk 0:01:59]}  Rc6 {[%clk 0:01:52]} 18. Ra1 {[%clk 0:01:59]}  Rac8 {[%clk 0:01:50]} 19. Rhc1 {[%clk 0:01:59]}  Rf6 {[%clk 0:01:51]} 20. Ke2 {[%clk 0:01:57]}  Rc4 {[%clk 0:01:50]} 21. c3 {[%clk 0:01:56]}  Rb6 {[%clk 0:01:48]} 22. Rc2 {[%clk 0:01:49]}  Rb3 {[%clk 0:01:47]} 23. Kd2 {[%clk 0:01:42]}  h5 {[%clk 0:01:45]} 24. h4 {[%clk 0:01:41]}  Kf6 {[%clk 0:01:45]} 25. Kc1 {[%clk 0:01:38]}  Kf5 {[%clk 0:01:42]} 26. Rd2 {[%clk 0:01:23]}  Kg4 {[%clk 0:01:39]} 27. Kc2 {[%clk 0:01:23]}  Rb6 {[%clk 0:01:38]} 28. f3+ {[%clk 0:01:01]}  exf3 {[%clk 0:01:29]} 29. gxf3+ {[%clk 0:01:02]}  Kxf3 {[%clk 0:01:30]} 30. Rf1+ {[%clk 0:00:57]}  Kxe3 {[%clk 0:01:30]} 31. Rdd1 {[%clk 0:00:51]}  Rxb2+ {[%clk 0:00:52]} 32. Kxb2 {[%clk 0:00:52]}  Rxa4 {[%clk 0:00:53]} 33. Rxf7 {[%clk 0:00:46]}  b5 {[%clk 0:00:51]} 34. Rxe7+ {[%clk 0:00:44]}  Kf4 {[%clk 0:00:50]} 35. Rf7+ {[%clk 0:00:40]}  Ke4 {[%clk 0:00:47]} 36. Re1+ {[%clk 0:00:38]}  Kd3 {[%clk 0:00:47]} 37. Rf3+ {[%clk 0:00:35]}  Kc4 {[%clk 0:00:47]} 38. Re7 {[%clk 0:00:32]}  b4 {[%clk 0:00:42]} 39. Rc7+ {[%clk 0:00:32]}  Kb5 {[%clk 0:00:42]} 40. Rb7+ {[%clk 0:00:32]}  Kc6 {[%clk 0:00:42]} 41. Rxb4 {[%clk 0:00:32]}  Ra5 {[%clk 0:00:43]} 42. Rf6+ {[%clk 0:00:32]}  Kc7 {[%clk 0:00:43]} 43. Rxg6 {[%clk 0:00:32]}  Ra6 {[%clk 0:00:41]} 44. Rxa6 {[%clk 0:00:32]} 1-0


[Site "https://www.chess.com"]

[Event "Titled Tuesday Blitz March 22 Late 2022"]
[White "Lin, Dachey"]
[Black "Iskusnyh, Sergei"]
[WhiteFideId "2029650"]
[BlackFideId "4120027"]
[WhiteElo "2313"]
[BlackElo "2492"]
[Result "1-0"]
[Round "11"]
[TimeControl "180+1"]
[Date "2022.03.22"]
[WhiteClock "0:00:19"]
[BlackClock "0:00:04"]

1. g4 {[%clk 0:03:00]}  d5 {[%clk 0:02:53]} 2. Bg2 {[%clk 0:03:00]}  c6 {[%clk 0:02:52]} 3. g5 {[%clk 0:03:00]}  e5 {[%clk 0:02:50]} 4. d4 {[%clk 0:03:00]}  e4 {[%clk 0:02:49]} 5. f3 {[%clk 0:03:00]}  f5 {[%clk 0:02:45]} 6. h4 {[%clk 0:03:01]}  Bd6 {[%clk 0:02:44]} 7. Nh3 {[%clk 0:02:58]}  h6 {[%clk 0:02:23]} 8. f4 {[%clk 0:02:16]}  h5 {[%clk 0:02:22]} 9. O-O {[%clk 0:02:09]}  Ne7 {[%clk 0:02:20]} 10. b3 {[%clk 0:02:09]}  Ng6 {[%clk 0:02:02]} 11. Qe1 {[%clk 0:02:08]}  Qe7 {[%clk 0:02:00]} 12. e3 {[%clk 0:02:06]}  b6 {[%clk 0:01:56]} 13. c4 {[%clk 0:02:02]}  a5 {[%clk 0:01:53]} 14. cxd5 {[%clk 0:02:01]}  cxd5 {[%clk 0:01:53]} 15. Nc3 {[%clk 0:02:02]}  Qe6 {[%clk 0:01:45]} 16. Nb5 {[%clk 0:01:59]}  Ba6 {[%clk 0:01:40]} 17. Nxd6+ {[%clk 0:01:57]}  Qxd6 {[%clk 0:01:40]} 18. Rf2 {[%clk 0:01:52]}  Nxh4 {[%clk 0:01:39]} 19. Rc2 {[%clk 0:01:52]}  Nf3+ {[%clk 0:01:38]} 20. Bxf3 {[%clk 0:01:52]}  exf3 {[%clk 0:01:39]} 21. a4 {[%clk 0:01:44]}  Nc6 {[%clk 0:01:37]} 22. Ba3 {[%clk 0:01:44]}  Nb4 {[%clk 0:01:37]} 23. Bxb4 {[%clk 0:01:42]}  axb4 {[%clk 0:01:37]} 24. Rac1 {[%clk 0:01:42]}  O-O {[%clk 0:01:32]} 25. Rc6 {[%clk 0:01:41]}  Qe7 {[%clk 0:01:30]} 26. Rc7 {[%clk 0:01:38]}  Qe4 {[%clk 0:01:27]} 27. Nf2 {[%clk 0:01:37]}  Qe8 {[%clk 0:01:22]} 28. Nd1 {[%clk 0:00:52]}  Be2 {[%clk 0:01:14]} 29. Kf2 {[%clk 0:00:47]}  h4 {[%clk 0:01:04]} 30. Qxb4 {[%clk 0:00:44]}  Rf7 {[%clk 0:01:01]} 31. Rxf7 {[%clk 0:00:35]}  Qxf7 {[%clk 0:01:00]} 32. Nc3 {[%clk 0:00:35]}  h3 {[%clk 0:00:56]} 33. Qd6 {[%clk 0:00:29]}  Qh5 {[%clk 0:00:42]} 34. Nxe2 {[%clk 0:00:25]}  fxe2 {[%clk 0:00:38]} 35. Qxd5+ {[%clk 0:00:26]}  Kh7 {[%clk 0:00:38]} 36. Qxa8 {[%clk 0:00:26]}  h2 {[%clk 0:00:30]} 37. Qf3 {[%clk 0:00:26]}  Qh4+ {[%clk 0:00:29]} 38. Kxe2 {[%clk 0:00:26]}  Kg6 {[%clk 0:00:21]} 39. d5 {[%clk 0:00:21]}  Qh8 {[%clk 0:00:10]} 40. d6 {[%clk 0:00:21]}  Qg8 {[%clk 0:00:06]} 41. d7 {[%clk 0:00:21]}  Qxb3 {[%clk 0:00:06]} 42. d8=Q {[%clk 0:00:18]}  Qb2+ {[%clk 0:00:07]} 43. Qd2 {[%clk 0:00:18]}  Qb3 {[%clk 0:00:05]} 44. Rc6+ {[%clk 0:00:18]}  Kf7 {[%clk 0:00:03]} 45. g6+ {[%clk 0:00:19]}  Kg8 {[%clk 0:00:04]} 46. Qd8# {[%clk 0:00:19]} 1-0


[Site "https://www.chess.com"]

[Event "Titled Tuesday Blitz March 22 Late 2022"]
[White "Maghsoodloo, Parham"]
[Black "Aravindh, Chithambaram VR."]
[WhiteFideId "12539929"]
[BlackFideId "5072786"]
[WhiteElo "2630"]
[BlackElo "2561"]
[Result "1-0"]
[Round "11"]
[TimeControl "180+1"]
[Date "2022.03.22"]
[WhiteClock "0:00:09"]
[BlackClock "0:00:01"]

1. d4 {[%clk 0:03:00]}  g6 {[%clk 0:03:00]} 2. c4 {[%clk 0:03:01]}  Bg7 {[%clk 0:03:00]} 3. Nc3 {[%clk 0:03:02]}  c5 {[%clk 0:03:00]} 4. d5 {[%clk 0:03:02]}  d6 {[%clk 0:03:00]} 5. e4 {[%clk 0:03:02]}  a6 {[%clk 0:02:59]} 6. a4 {[%clk 0:03:01]}  Nf6 {[%clk 0:02:58]} 7. Be2 {[%clk 0:02:58]}  O-O {[%clk 0:02:58]} 8. Nf3 {[%clk 0:02:57]}  e6 {[%clk 0:02:57]} 9. Bg5 {[%clk 0:02:57]}  exd5 {[%clk 0:02:56]} 10. cxd5 {[%clk 0:02:57]}  Re8 {[%clk 0:02:55]} 11. Nd2 {[%clk 0:02:57]}  Nbd7 {[%clk 0:02:52]} 12. O-O {[%clk 0:02:56]}  Qc7 {[%clk 0:02:49]} 13. f4 {[%clk 0:02:41]}  Rb8 {[%clk 0:02:48]} 14. Kh1 {[%clk 0:02:27]}  b6 {[%clk 0:02:32]} 15. Qc2 {[%clk 0:02:21]}  Nf8 {[%clk 0:02:08]} 16. Rae1 {[%clk 0:02:16]}  Ng4 {[%clk 0:02:04]} 17. Nc4 {[%clk 0:01:19]}  b5 {[%clk 0:01:56]} 18. axb5 {[%clk 0:01:19]}  axb5 {[%clk 0:01:57]} 19. Bxg4 {[%clk 0:01:20]}  Bxg4 {[%clk 0:01:50]} 20. Ne3 {[%clk 0:01:21]}  Bc8 {[%clk 0:01:36]} 21. e5 {[%clk 0:01:21]}  dxe5 {[%clk 0:01:30]} 22. f5 {[%clk 0:01:18]}  f6 {[%clk 0:01:20]} 23. Bh4 {[%clk 0:01:09]}  Rb6 {[%clk 0:01:10]} 24. Ne4 {[%clk 0:01:05]}  gxf5 {[%clk 0:01:02]} 25. Nxf5 {[%clk 0:01:05]}  Bxf5 {[%clk 0:00:58]} 26. Rxf5 {[%clk 0:01:06]}  Qd7 {[%clk 0:00:56]} 27. Ref1 {[%clk 0:01:00]}  Qxd5 {[%clk 0:00:47]} 28. Bxf6 {[%clk 0:01:01]}  Ng6 {[%clk 0:00:47]} 29. Bxg7 {[%clk 0:00:31]}  Kxg7 {[%clk 0:00:48]} 30. Ng5 {[%clk 0:00:31]}  Rb7 {[%clk 0:00:17]} 31. h4 {[%clk 0:00:19]}  c4 {[%clk 0:00:12]} 32. h5 {[%clk 0:00:19]}  Qd3 {[%clk 0:00:07]} 33. Qxd3 {[%clk 0:00:08]}  cxd3 {[%clk 0:00:08]} 34. hxg6 {[%clk 0:00:09]}  e4 {[%clk 0:00:03]} 35. Rf7+ {[%clk 0:00:08]}  Rxf7 {[%clk 0:00:03]} 36. gxf7 {[%clk 0:00:09]}  Ra8 {[%clk 0:00:01]} 37. Nxe4 {[%clk 0:00:08]}  Rf8 {[%clk 0:00:01]} 38. Nc5 {[%clk 0:00:09]} 1-0


[Site "https://www.chess.com"]

[Event "Titled Tuesday Blitz March 22 Late 2022"]
[White "Marcziter, Dmitrii"]
[Black "Buchenau, Frank"]
[WhiteFideId "13900765"]
[BlackFideId "4604350"]
[WhiteElo "2155"]
[BlackElo "2193"]
[Result "0-1"]
[Round "11"]
[TimeControl "180+1"]
[Date "2022.03.22"]
[WhiteClock "0:00:15"]
[BlackClock "0:00:52"]

1. d4 {[%clk 0:03:00]}  e6 {[%clk 0:02:59]} 2. c4 {[%clk 0:02:59]}  Nf6 {[%clk 0:02:59]} 3. Nf3 {[%clk 0:02:45]}  b6 {[%clk 0:02:57]} 4. a3 {[%clk 0:02:44]}  Ba6 {[%clk 0:02:57]} 5. Qc2 {[%clk 0:02:44]}  Bb7 {[%clk 0:02:56]} 6. Nc3 {[%clk 0:02:43]}  c5 {[%clk 0:02:55]} 7. e4 {[%clk 0:02:39]}  cxd4 {[%clk 0:02:55]} 8. Nxd4 {[%clk 0:02:39]}  Bc5 {[%clk 0:02:55]} 9. Nb3 {[%clk 0:02:38]}  Nc6 {[%clk 0:02:55]} 10. Be2 {[%clk 0:02:36]}  Nd4 {[%clk 0:02:45]} 11. Nxd4 {[%clk 0:02:35]}  Bxd4 {[%clk 0:02:46]} 12. Bd3 {[%clk 0:02:32]}  Ng4 {[%clk 0:02:24]} 13. Ne2 {[%clk 0:02:33]}  Bxf2+ {[%clk 0:02:21]} 14. Kf1 {[%clk 0:02:30]}  Ne3+ {[%clk 0:02:16]} 15. Bxe3 {[%clk 0:02:29]}  Bxe3 {[%clk 0:02:17]} 16. Ng3 {[%clk 0:02:27]}  Qf6+ {[%clk 0:02:15]} 17. Ke2 {[%clk 0:02:27]}  Qf2+ {[%clk 0:02:12]} 18. Kd1 {[%clk 0:02:27]}  Qxc2+ {[%clk 0:02:10]} 19. Kxc2 {[%clk 0:02:27]}  Rc8 {[%clk 0:02:06]} 20. b3 {[%clk 0:02:24]}  O-O {[%clk 0:02:02]} 21. Rae1 {[%clk 0:02:23]}  Bf4 {[%clk 0:01:54]} 22. Kb2 {[%clk 0:02:19]}  Be5+ {[%clk 0:01:51]} 23. Ka2 {[%clk 0:02:19]}  Rfd8 {[%clk 0:01:43]} 24. Rhf1 {[%clk 0:01:59]}  Bxg3 {[%clk 0:01:31]} 25. hxg3 {[%clk 0:01:58]}  Rc5 {[%clk 0:01:28]} 26. b4 {[%clk 0:01:54]}  Rg5 {[%clk 0:01:28]} 27. Re3 {[%clk 0:01:52]}  h5 {[%clk 0:01:20]} 28. Kb3 {[%clk 0:01:51]}  g6 {[%clk 0:01:13]} 29. Ref3 {[%clk 0:01:05]}  f5 {[%clk 0:01:12]} 30. Re3 {[%clk 0:01:03]}  fxe4 {[%clk 0:01:05]} 31. Bc2 {[%clk 0:01:00]}  d5 {[%clk 0:01:04]} 32. cxd5 {[%clk 0:01:00]}  exd5 {[%clk 0:01:03]} 33. Rd1 {[%clk 0:00:43]}  d4 {[%clk 0:00:55]} 34. Rxe4 {[%clk 0:00:15]}  Rxg3+ {[%clk 0:00:52]} 0-1


[Site "https://www.chess.com"]

[Event "Titled Tuesday Blitz March 22 Late 2022"]
[White "Ozates, Tuna"]
[Black "Szpar, Milosz"]
[WhiteFideId "6354521"]
[BlackFideId "1184989"]
[WhiteElo "1887"]
[BlackElo "2447"]
[Result "1-0"]
[Round "11"]
[TimeControl "180+1"]
[Date "2022.03.22"]
[WhiteClock "0:00:48"]
[BlackClock "0:02:15"]

1. d4 {[%clk 0:02:57]}  Nf6 {[%clk 0:03:00]} 2. c4 {[%clk 0:02:56]}  c5 {[%clk 0:03:01]} 3. d5 {[%clk 0:02:56]}  e6 {[%clk 0:03:01]} 4. Nc3 {[%clk 0:02:56]}  exd5 {[%clk 0:03:02]} 5. cxd5 {[%clk 0:02:57]}  d6 {[%clk 0:03:02]} 6. e4 {[%clk 0:02:58]}  g6 {[%clk 0:03:03]} 7. Nf3 {[%clk 0:02:58]}  Bg7 {[%clk 0:03:03]} 8. Bd3 {[%clk 0:02:58]}  O-O {[%clk 0:03:03]} 9. O-O {[%clk 0:02:59]}  b5 {[%clk 0:03:04]} 10. Nxb5 {[%clk 0:02:56]}  Re8 {[%clk 0:02:56]} 11. Re1 {[%clk 0:02:53]}  Na6 {[%clk 0:02:46]} 12. Bf4 {[%clk 0:02:48]}  Bf8 {[%clk 0:02:44]} 13. h3 {[%clk 0:02:38]}  Nb4 {[%clk 0:02:40]} 14. Bb1 {[%clk 0:02:30]}  Ba6 {[%clk 0:02:40]} 15. Nc3 {[%clk 0:02:23]}  Nh5 {[%clk 0:02:38]} 16. Bh2 {[%clk 0:02:17]}  Bb7 {[%clk 0:02:37]} 17. a3 {[%clk 0:02:07]}  Na6 {[%clk 0:02:37]} 18. e5 {[%clk 0:02:07]}  dxe5 {[%clk 0:02:37]} 19. Nxe5 {[%clk 0:02:03]}  Qg5 {[%clk 0:02:35]} 20. Qg4 {[%clk 0:01:55]}  Qd2 {[%clk 0:02:35]} 21. Ba2 {[%clk 0:01:40]}  Bd6 {[%clk 0:02:34]} 22. Qd7 {[%clk 0:01:16]}  Qxb2 {[%clk 0:02:25]} 23. Qxf7+ {[%clk 0:01:01]}  Kh8 {[%clk 0:02:26]} 24. Nxg6+ {[%clk 0:00:58]}  hxg6 {[%clk 0:02:24]} 25. Bxd6 {[%clk 0:00:58]}  Qxc3 {[%clk 0:02:17]} 26. Rxe8+ {[%clk 0:00:57]}  Rxe8 {[%clk 0:02:15]} 27. Qxe8+ {[%clk 0:00:58]}  Kh7 {[%clk 0:02:15]} 28. Qe7+ {[%clk 0:00:49]}  Ng7 {[%clk 0:02:15]} 29. Be5 {[%clk 0:00:48]} 1-0


[Site "https://www.chess.com"]

[Event "Titled Tuesday Blitz March 22 Late 2022"]
[White "Papp, Levente"]
[Black "Le Goff, Ronan"]
[WhiteFideId "751243"]
[BlackFideId "612073"]
[WhiteElo "2308"]
[BlackElo "2276"]
[Result "1-0"]
[Round "11"]
[TimeControl "180+1"]
[Date "2022.03.22"]
[WhiteClock "0:00:12"]
[BlackClock "0:00:04"]

1. c4 {[%clk 0:03:00]}  Nf6 {[%clk 0:02:59]} 2. Nc3 {[%clk 0:03:00]}  e6 {[%clk 0:02:59]} 3. e4 {[%clk 0:03:00]}  d5 {[%clk 0:02:58]} 4. cxd5 {[%clk 0:03:01]}  exd5 {[%clk 0:02:58]} 5. e5 {[%clk 0:03:02]}  Ne4 {[%clk 0:02:58]} 6. Nf3 {[%clk 0:03:01]}  Nc6 {[%clk 0:02:49]} 7. Bb5 {[%clk 0:02:50]}  Bg4 {[%clk 0:02:47]} 8. Qa4 {[%clk 0:02:27]}  Nxc3 {[%clk 0:01:50]} 9. Bxc6+ {[%clk 0:01:51]}  bxc6 {[%clk 0:01:49]} 10. Qxg4 {[%clk 0:01:43]}  h5 {[%clk 0:01:38]} 11. Qf5 {[%clk 0:01:39]}  Ne4 {[%clk 0:01:33]} 12. e6 {[%clk 0:01:31]}  fxe6 {[%clk 0:01:27]} 13. Qg6+ {[%clk 0:01:31]}  Kd7 {[%clk 0:01:27]} 14. d3 {[%clk 0:01:22]}  Qf6 {[%clk 0:01:20]} 15. Qxf6 {[%clk 0:01:06]}  Nxf6 {[%clk 0:01:19]} 16. Ne5+ {[%clk 0:01:06]}  Kc8 {[%clk 0:01:06]} 17. Nxc6 {[%clk 0:01:06]}  Bd6 {[%clk 0:00:59]} 18. O-O {[%clk 0:00:50]}  Kd7 {[%clk 0:00:52]} 19. Nd4 {[%clk 0:00:48]}  c5 {[%clk 0:00:52]} 20. Nf3 {[%clk 0:00:48]}  Rab8 {[%clk 0:00:47]} 21. b3 {[%clk 0:00:48]}  Ng4 {[%clk 0:00:38]} 22. Bb2 {[%clk 0:00:43]}  d4 {[%clk 0:00:33]} 23. Rfe1 {[%clk 0:00:37]}  Rbf8 {[%clk 0:00:27]} 24. Re2 {[%clk 0:00:36]}  Rf6 {[%clk 0:00:21]} 25. b4 {[%clk 0:00:27]}  Rc8 {[%clk 0:00:11]} 26. h3 {[%clk 0:00:26]}  Nh6 {[%clk 0:00:11]} 27. bxc5 {[%clk 0:00:26]}  Bxc5 {[%clk 0:00:11]} 28. Nxd4 {[%clk 0:00:24]}  Bxd4 {[%clk 0:00:11]} 29. Bxd4 {[%clk 0:00:25]}  Rg6 {[%clk 0:00:11]} 30. Bxa7 {[%clk 0:00:24]}  Nf5 {[%clk 0:00:11]} 31. g3 {[%clk 0:00:16]}  Rc3 {[%clk 0:00:09]} 32. Rd1 {[%clk 0:00:16]}  Ra3 {[%clk 0:00:09]} 33. Bc5 {[%clk 0:00:15]}  Ra5 {[%clk 0:00:09]} 34. d4 {[%clk 0:00:15]}  Ne7 {[%clk 0:00:06]} 35. Bxe7 {[%clk 0:00:13]}  Kxe7 {[%clk 0:00:07]} 36. Rb1 {[%clk 0:00:13]}  Rd5 {[%clk 0:00:05]} 37. Rb7+ {[%clk 0:00:13]}  Kd6 {[%clk 0:00:06]} 38. Re4 {[%clk 0:00:13]}  Rf6 {[%clk 0:00:05]} 39. Rb6+ {[%clk 0:00:13]}  Kd7 {[%clk 0:00:05]} 40. Rb7+ {[%clk 0:00:13]}  Kd6 {[%clk 0:00:05]} 41. Rxg7 {[%clk 0:00:13]}  Rf3 {[%clk 0:00:05]} 42. Rg6 {[%clk 0:00:12]}  Ra3 {[%clk 0:00:04]} 43. Rgxe6+ {[%clk 0:00:12]}  Kd7 {[%clk 0:00:05]} 44. Re7+ {[%clk 0:00:12]}  Kd8 {[%clk 0:00:05]} 45. R7e5 {[%clk 0:00:12]}  Rd7 {[%clk 0:00:05]} 46. Rxh5 {[%clk 0:00:12]}  Rxa2 {[%clk 0:00:05]} 47. Rf5 {[%clk 0:00:11]}  Kc7 {[%clk 0:00:05]} 48. h4 {[%clk 0:00:11]}  Kc6 {[%clk 0:00:05]} 49. h5 {[%clk 0:00:11]}  Rd2 {[%clk 0:00:05]} 50. h6 {[%clk 0:00:11]}  Rh7 {[%clk 0:00:05]} 51. Re6+ {[%clk 0:00:10]}  Kd7 {[%clk 0:00:06]} 52. Ra6 {[%clk 0:00:11]}  Kd8 {[%clk 0:00:05]} 53. Ra8+ {[%clk 0:00:11]}  Kc7 {[%clk 0:00:05]} 54. Ra7+ {[%clk 0:00:12]}  Kd6 {[%clk 0:00:05]} 55. Rxh7 {[%clk 0:00:13]}  Rd3 {[%clk 0:00:03]} 56. Rhf7 {[%clk 0:00:13]}  Ke6 {[%clk 0:00:03]} 57. h7 {[%clk 0:00:13]}  Rxd4 {[%clk 0:00:03]} 58. h8=Q {[%clk 0:00:13]}  Rd1+ {[%clk 0:00:03]} 59. Kg2 {[%clk 0:00:13]}  Rd5 {[%clk 0:00:04]} 60. Qf6# {[%clk 0:00:12]} 1-0


[Site "https://www.chess.com"]

[Event "Titled Tuesday Blitz March 22 Late 2022"]
[White "Paravyan, David"]
[Black "Boyer, Mahel"]
[WhiteFideId "4194985"]
[BlackFideId "45102422"]
[WhiteElo "2569"]
[BlackElo "2328"]
[Result "1-0"]
[Round "11"]
[TimeControl "180+1"]
[Date "2022.03.22"]
[WhiteClock "0:02:00"]
[BlackClock "0:00:16"]

1. e4 {[%clk 0:03:00]}  Nc6 {[%clk 0:02:59]} 2. Nf3 {[%clk 0:03:01]}  d5 {[%clk 0:03:00]} 3. exd5 {[%clk 0:03:01]}  Qxd5 {[%clk 0:03:01]} 4. Nc3 {[%clk 0:03:02]}  Qh5 {[%clk 0:03:02]} 5. Nb5 {[%clk 0:03:00]}  Kd8 {[%clk 0:03:02]} 6. d4 {[%clk 0:03:00]}  Bg4 {[%clk 0:03:02]} 7. d5 {[%clk 0:02:57]}  Ne5 {[%clk 0:02:59]} 8. Bf4 {[%clk 0:02:50]}  Bxf3 {[%clk 0:02:03]} 9. Qd4 {[%clk 0:02:49]}  f6 {[%clk 0:02:03]} 10. Bxe5 {[%clk 0:02:38]}  fxe5 {[%clk 0:02:02]} 11. Qc5 {[%clk 0:02:17]}  c6 {[%clk 0:01:50]} 12. dxc6 {[%clk 0:02:16]}  Bxc6 {[%clk 0:01:35]} 13. Rd1+ {[%clk 0:02:16]}  Kc8 {[%clk 0:01:33]} 14. Nxa7+ {[%clk 0:02:15]}  Rxa7 {[%clk 0:01:29]} 15. Qxa7 {[%clk 0:02:15]}  Qe8 {[%clk 0:01:07]} 16. Qa8+ {[%clk 0:02:12]}  Kc7 {[%clk 0:01:07]} 17. Qa5+ {[%clk 0:02:12]}  Kc8 {[%clk 0:01:07]} 18. Bc4 {[%clk 0:02:09]}  Bd7 {[%clk 0:00:50]} 19. Be6 {[%clk 0:02:01]}  Bxe6 {[%clk 0:00:16]} 20. Qa8+ {[%clk 0:02:00]} 1-0


[Site "https://www.chess.com"]

[Event "Titled Tuesday Blitz March 22 Late 2022"]
[White "Petrova, Irina"]
[Black "Van den Dikkenberg, Erik"]
[WhiteFideId "14124122"]
[BlackFideId "1005880"]
[WhiteElo "1993"]
[BlackElo "2118"]
[Result "1-0"]
[Round "11"]
[TimeControl "180+1"]
[Date "2022.03.22"]
[WhiteClock "0:00:29"]
[BlackClock "0:00:35"]

1. e4 {[%clk 0:03:00]}  c5 {[%clk 0:03:00]} 2. Nf3 {[%clk 0:03:00]}  d6 {[%clk 0:03:00]} 3. Bb5+ {[%clk 0:03:00]}  Nd7 {[%clk 0:03:00]} 4. O-O {[%clk 0:02:59]}  g6 {[%clk 0:03:00]} 5. d4 {[%clk 0:02:36]}  cxd4 {[%clk 0:02:59]} 6. Qxd4 {[%clk 0:02:37]}  Nf6 {[%clk 0:02:59]} 7. e5 {[%clk 0:02:32]}  dxe5 {[%clk 0:02:58]} 8. Nxe5 {[%clk 0:02:33]}  Qb6 {[%clk 0:02:48]} 9. Qc4 {[%clk 0:02:17]}  e6 {[%clk 0:02:39]} 10. Nc3 {[%clk 0:02:01]}  Qc5 {[%clk 0:02:21]} 11. Qf4 {[%clk 0:01:43]}  Bg7 {[%clk 0:02:11]} 12. Be3 {[%clk 0:01:39]}  Qe7 {[%clk 0:02:01]} 13. Rad1 {[%clk 0:01:18]}  O-O {[%clk 0:01:55]} 14. Nxd7 {[%clk 0:01:15]}  Bxd7 {[%clk 0:01:54]} 15. Bxd7 {[%clk 0:01:11]}  Nxd7 {[%clk 0:01:52]} 16. Qc7 {[%clk 0:01:04]}  Rfd8 {[%clk 0:01:35]} 17. Qxb7 {[%clk 0:01:03]}  Rab8 {[%clk 0:01:33]} 18. Qxa7 {[%clk 0:00:49]}  Rxb2 {[%clk 0:01:32]} 19. Ne4 {[%clk 0:00:42]}  Rxc2 {[%clk 0:01:21]} 20. Bc5 {[%clk 0:00:32]}  Qh4 {[%clk 0:00:57]} 21. Rxd7 {[%clk 0:00:30]}  Rxd7 {[%clk 0:00:55]} 22. Qxd7 {[%clk 0:00:30]}  Be5 {[%clk 0:00:43]} 23. Qe8+ {[%clk 0:00:28]}  Kg7 {[%clk 0:00:42]} 24. Bf8+ {[%clk 0:00:28]}  Kg8 {[%clk 0:00:35]} 25. Bh6# {[%clk 0:00:29]} 1-0


[Site "https://www.chess.com"]